[Event "ENG-ch Women 2019"]
[Site "Hull"]
[Date "2019.08.31"]
[Round "2.4"]
[White "Headlong, Fenella"]
[Black "Bhatia, Kanwal K"]
[Result "1/2-1/2"]
[ECO "C50"]
[WhiteElo "1761"]
[BlackElo "2044"]
[Annotator "NA"]
[PlyCount "53"]
[EventDate "2019.08.30"]
[EventType "swiss"]
[EventCountry "ENG"]
[SourceTitle "playchess.com"]
[Source "ChessBase"]
[SourceQuality "1"]
[TimeControl "5400+30"]

1. e4 {[%emt 0:00:00]} e5 {[%emt 0:00:00]} 2. Nf3 {[%emt 0:00:00]} Nc6 {[%emt 0:00:00]} 3. Bc4 {[%emt 0:00:00]} Bc5 {[%emt 0:00:00]} 4. d3 {[%emt 0:00:44]} Nf6 {[%emt 0:00:21]} 5. Nc3 {[%emt 0:04:23]} h6 {[%emt 0:00:43]} 6. a3 {[%emt 0:03:45]} a6 {[%emt 0:02:12]} 7. Be3 {[%emt 0:04:42] C50: Hungarian Defence and Giuoco Pianissimo} (7. b4 Ba7 8. h3 d6 9. Ne2 Be6 10. Bxe6 fxe6 11. Ng3 O-O 12. c3 Qe8 13. O-O Nh5 14. Nxh5 Qxh5 {½-½ (24) Svidler,P (2741)-Yu,Y (2750) Shenzhen 2017}) 7... d6 {[%emt 0:04:46]} 8. b4 {[%emt 0:09:31]} Bxe3 $146 {[%emt 0:05:33]} ({Predecessor:} 8... Ba7 9. h3 b5 10. Bb3 Nd4 11. Bxd4 exd4 12. Nd5 c6 13. Nxf6+ Qxf6 14. a4 Qe7 {1-0 (72) Brkic,A (2563)-Sanal,V (2490) Skopje 2018}) 9. fxe3 {[%emt 0:00:04]} Bg4 {[%emt 0:03:46]} 10. O-O {[%emt 0:01:40]} O-O {[%emt 0:06:03]} 11. Qe1 {[%emt 0:05:09]} Qd7 {[%emt 0:05:07]} 12. Nh4 {[%emt 0:05:42]} Ne7 {[%emt 0:03:04]} 13. Rxf6 {[%emt 0:18:03]} gxf6 {[%emt 0:00:07]} 14. Qf2 {[%emt 0:00:20]} Kh7 {[%emt 0:05:09]} 15. Rf1 {[%emt 0:01:38]} Ng6 {[%emt 0:01:27]} 16. Nd5 {[%emt 0:01:03]} Qd8 {[%emt 0:20:47]} 17. Nxf6+ {[%emt 0:02:14]} Kg7 {[%emt 0:01:48]} 18. Nf5+ $2 {[%emt 0:09:38]} (18. Qg3) 18... Kxf6 {[%emt 0:08:51]} 19. Nxh6+ {[%emt 0:01:17] Double Attack} Kg7 {[%emt 0:00:46]} 20. Nxg4 {[%emt 0:00:45]} Qg5 {[%emt 0:05:49]} 21. Qf5 {[%emt 0:06:45]} f6 $2 {[%emt 0:11:23]} (21... Qxf5 {was called for.} 22. exf5 (22. Rxf5 f6 $11) 22... Nh8 23. f6+ Kg6) 22. Qd7+ {[%emt 0:02:42]} Kh8 {[%emt 0:00:08]} 23. Rf3 {[%emt 0:01:57]} Rad8 $18 {[%emt 0:00:35]} 24. Rh3+ {[%emt 0:01:07]} Nh4 {[%emt 0:00:07]} 25. Qe6 {[%emt 0:03:07]} Rde8 {[%emt 0:00:10]} 26. Qd7 {[%emt 0:00:28]} Rd8 {[%emt 0:02:29]} 27. Qe6 {[%emt 0:00:10]} 1/2-1/2

[Event "ENG-ch Women 2019"]
[Site "Hull"]
[Date "2019.08.31"]
[Round "2.5"]
[White "Varney, Zoe"]
[Black "Sheikh, Anum"]
[Result "1-0"]
[ECO "B40"]
[WhiteElo "1975"]
[BlackElo "1693"]
[Annotator "NA"]
[PlyCount "127"]
[EventDate "2019.08.30"]
[EventType "swiss"]
[EventCountry "ENG"]
[SourceTitle "playchess.com"]
[Source "ChessBase"]
[SourceQuality "1"]
[TimeControl "5400+30"]

1. e4 {[%emt 0:00:00]} c5 {[%emt 0:00:00]} 2. Nf3 {[%emt 0:00:00]} e6 {[%emt 0:00:00]} 3. c3 {[%emt 0:00:00]} Nf6 {[%emt 0:00:00]} 4. Bd3 {[%emt 0:00:00]} Nc6 {[%emt 0:01:03]} 5. Bc2 {[%emt 0:00:00]} (5. O-O d5 6. e5 Nd7 7. Bb5 a6 8. Bxc6 bxc6 9. d3 Be7 10. Re1 O-O 11. c4 f6 12. exf6 Bxf6 13. Nc3 {1-0 (37) Rapport,R (2715)-Lenderman,A (2600) Reykjavik 2018}) 5... d5 {[%emt 0:00:53]} 6. e5 {[%emt 0:00:09] B40: Sicilian: 2...e6, Unusual lines} Nd7 {[%emt 0:00:59]} 7. d4 {[%emt 0:00:08]} c4 {[%emt 0:03:53]} 8. Ng5 $146 {[%emt 0:17:11]} ({Predecessor:} 8. Bf4 Be7 9. Nbd2 f5 10. exf6 Nxf6 11. O-O O-O {1-0 (50) Wotschke,C (1532)-Polk,M (1239) Bad Sooden 2005}) 8... g6 {[%emt 0:08:26]} 9. Qf3 {[%emt 0:09:47]} Qe7 {[%emt 0:00:18]} 10. b3 {[%emt 0:05:13]} h6 {[%emt 0:05:33]} 11. Nh3 {[%emt 0:06:06]} b5 {[%emt 0:22:51]} 12. bxc4 {[%emt 0:09:54]} bxc4 {[%emt 0:00:17]} 13. Nf4 {[%emt 0:00:54]} Rg8 {[%emt 0:08:32]} 14. Qh3 {[%emt 0:22:27]} Nb6 {[%emt 0:09:40]} 15. a4 {[%emt 0:01:19]} Na5 {[%emt 0:04:16]} 16. Nd2 {[%emt 0:05:03]} Bd7 {[%emt 0:08:37]} 17. Nf3 {[%emt 0:01:26]} (17. O-O $16) 17... O-O-O {[%emt 0:02:29]} (17... Nb3 $11 18. Ba3 Qd8) 18. O-O {[%emt 0:02:56]} Qe8 {[%emt 0:06:53]} 19. Bd2 {[%emt 0:03:04]} Be7 {[%emt 0:00:24]} 20. Ne2 {[%emt 0:02:06]} h5 {[%emt 0:02:09]} 21. Ra2 {[%emt 0:01:47]} Kb7 {[%emt 0:00:41]} 22. Bg5 {[%emt 0:01:34]} Bxg5 {[%emt 0:00:28]} 23. Nxg5 {[%emt 0:00:05]} Qe7 {[%emt 0:00:17]} 24. Qe3 {[%emt 0:01:01]} Rh8 {[%emt 0:03:14]} 25. Rb1 {[%emt 0:03:29]} h4 {[%emt 0:00:11]} 26. Qf4 {[%emt 0:01:42]} Rdf8 {[%emt 0:00:32]} 27. Qf6 {[%emt 0:00:40]} Qxf6 {[%emt 0:00:46]} 28. exf6 {[%emt 0:00:04]} Rh5 {[%emt 0:00:06]} 29. Nf3 {[%emt 0:00:53]} g5 {[%emt 0:00:15]} 30. Ne5 {[%emt 0:01:25]} Be8 {[%emt 0:00:21]} 31. f4 {[%emt 0:00:41]} gxf4 {[%emt 0:02:00]} 32. Nxf4 {[%emt 0:00:12]} Rg5 {[%emt 0:00:36]} 33. h3 {[%emt 0:00:49]} Rg3 {[%emt 0:00:51]} 34. Ne2 {[%emt 0:01:03]} Rg5 {[%emt 0:01:56]} 35. Nf3 {[%emt 0:00:42]} Rh5 {[%emt 0:00:08]} 36. Nf4 {[%emt 0:00:04]} Rh6 {[%emt 0:00:15]} 37. Rf1 {[%emt 0:02:17]} Rfh8 {[%emt 0:00:21]} 38. Ne5 {[%emt 0:00:11]} Rf8 {[%emt 0:01:51]} 39. Nxe6 {[%emt 0:01:32]} fxe6 {[%emt 0:00:12]} 40. f7 {[%emt 0:00:02]} Bxf7 {[%emt 0:00:12]} 41. Nxf7 {[%emt 0:00:08]} Rxf7 {[%emt 0:01:19]} 42. Rxf7+ {[%emt 0:00:04]} Ka6 {[%emt 0:00:17]} 43. Rh7 {[%emt 0:00:20]} Rxh7 {[%emt 0:00:14]} 44. Bxh7 {[%emt 0:00:03]} Nc6 {[%emt 0:00:36]} 45. Bg8 {[%emt 0:00:26]} Nd8 {[%emt 0:00:28]} 46. a5 {[%emt 0:00:38]} Nd7 {[%emt 0:00:07]} 47. Re2 {[%emt 0:00:41]} Kxa5 {[%emt 0:00:43]} 48. Bxe6 {[%emt 0:00:04]} Nxe6 {[%emt 0:00:29]} 49. Rxe6 {[%emt 0:00:03]} Nb6 {[%emt 0:00:22]} 50. Re7 {[%emt 0:00:49]} a6 {[%emt 0:00:09]} 51. Kf2 {[%emt 0:00:17]} (51. g4 $142) 51... Na4 {[%emt 0:00:06]} 52. Re3 {[%emt 0:00:10]} Nb2 {[%emt 0:00:19]} 53. Ke2 {[%emt 0:01:07]} Ka4 {[%emt 0:00:22]} 54. Kd2 {[%emt 0:01:38]} Kb3 {[%emt 0:00:05]} 55. Re6 {[%emt 0:00:45]} a5 {[%emt 0:00:23]} 56. Rb6+ {[%emt 0:00:18]} Ka3 {[%emt 0:00:32] [#]} 57. Rb5 $1 {[%emt 0:01:35]} a4 {[%emt 0:00:15]} 58. Rxd5 {[%emt 0:00:28]} Ka2 {[%emt 0:00:06]} 59. Kc2 {[%emt 0:00:53]} a3 {[%emt 0:00:16]} 60. Rc5 {[%emt 0:00:29]} Ka1 {[%emt 0:00:21]} 61. d5 {[%emt 0:00:23]} a2 {[%emt 0:00:13]} 62. d6 {[%emt 0:00:31]} Nd3 {[%emt 0:00:07]} 63. Ra5 {[%emt 0:00:51]} Nc5 {[%emt 0:01:25]} 64. d7 {[%emt 0:00:30]} 1-0

[Event "ENG-ch Women 2019"]
[Site "Hull"]
[Date "2019.08.31"]
[Round "2.6"]
[White "Denning, Julie L"]
[Black "Jaufarally, Nadia"]
[Result "0-1"]
[ECO "E73"]
[WhiteElo "1629"]
[BlackElo "1934"]
[Annotator "NA"]
[PlyCount "68"]
[EventDate "2019.08.30"]
[EventType "swiss"]
[EventCountry "ENG"]
[SourceTitle "playchess.com"]
[Source "ChessBase"]
[SourceQuality "1"]
[TimeControl "5400+30"]

1. d4 {[%emt 0:00:00]} Nf6 {[%emt 0:00:00]} 2. c4 {[%emt 0:00:00]} g6 {[%emt 0:00:00]} 3. Nc3 {[%emt 0:00:00]} Bg7 {[%emt 0:00:00]} 4. Nf3 {[%emt 0:01:58]} O-O {[%emt 0:00:09]} 5. e4 {[%emt 0:01:02]} d6 {[%emt 0:00:09]} 6. Bg5 {[%emt 0:01:04]} Nbd7 {[%emt 0:07:06]} 7. Qd2 {[%emt 0:01:35]} c6 {[%emt 0:12:06]} 8. Be2 {[%emt 0:06:41]} e5 {[%emt 0:10:43]} 9. O-O-O {[%emt 0:06:50] E73: King's Indian: Averbakh Variation without 6...c5} (9. O-O Qc7 10. Rfe1 Re8 11. Bf1 exd4 12. Nxd4 Nc5 13. f3 a5 14. b3 Nfd7 15. Rab1 Nb6 16. Be3 Be6 17. Red1 Be5 18. Kh1 Qe7 {½-½ (54) Yilmazyerli,M (2436)-Kamer,K (2417) Antalya 2019}) 9... h6 $146 {[%emt 0:05:28]} ({Predecessor:} 9... Qa5 10. h4 exd4 11. Nxd4 d5 12. Nb3 Qb4 13. exd5 cxd5 14. cxd5 Nc5 15. Nxc5 Qxc5 16. Qd4 Qxd4 17. Rxd4 {1-0 (34) Herega,N (1600)-Muhibic,C (1920) Sarajevo 2018}) 10. dxe5 {[%emt 0:05:45]} dxe5 {[%emt 0:07:16]} 11. Bh4 {[%emt 0:04:37]} Qe7 {[%emt 0:07:30]} 12. h3 {[%emt 0:03:39]} g5 {[%emt 0:06:38]} 13. Nxg5 {[%emt 0:09:37]} (13. Bg3 $15) 13... hxg5 {[%emt 0:00:18]} 14. Qxg5 {[%emt 0:00:11]} Nc5 {[%emt 0:01:05]} 15. f4 {[%emt 0:05:17]} Ne6 {[%emt 0:02:19]} 16. Qxe5 {[%emt 0:01:20]} Re8 $1 {[%emt 0:07:37]} 17. Rd3 {[%emt 0:04:09]} (17. g3 $14) 17... Nh7 {[%emt 0:09:46]} (17... Nc5 $15 18. Qxe7 Nxd3+ 19. Bxd3 Rxe7) 18. Rg3 $2 {[%emt 0:06:09]} (18. Qxg7+ $11 Kxg7 19. Bxe7 Rxe7 20. Rf1) 18... Qxh4 {[%emt 0:00:48] Double Attack} 19. f5 {[%emt 0:05:42]} Qf4+ {[%emt 0:00:18]} 20. Qxf4 {[%emt 0:00:33]} Nxf4 {[%emt 0:00:04]} 21. Bd1 {[%emt 0:02:58]} Kf8 {[%emt 0:07:27]} 22. Rf3 $19 {[%emt 0:06:17]} Bxc3 {[%emt 0:07:22]} 23. Rxf4 {[%emt 0:00:15]} Bg7 {[%emt 0:02:46]} 24. Rh4 {[%emt 0:04:17]} Nf6 {[%emt 0:00:59]} 25. Bc2 {[%emt 0:01:12]} Bd7 {[%emt 0:01:59]} 26. Kb1 {[%emt 0:02:03]} Re5 {[%emt 0:00:27]} 27. Rf4 {[%emt 0:05:17]} Rae8 {[%emt 0:00:23]} 28. Rd1 {[%emt 0:01:22]} Bc8 {[%emt 0:00:48]} 29. Rdf1 {[%emt 0:04:43]} Nxe4 {[%emt 0:00:55]} 30. Bxe4 {[%emt 0:00:38]} Rxe4 {[%emt 0:00:04]} 31. f6 {[%emt 0:00:23]} Bh6 {[%emt 0:01:36]} 32. R4f2 {[%emt 0:01:47]} Re1+ {[%emt 0:00:30]} 33. Rxe1 {[%emt 0:00:36]} Rxe1+ {[%emt 0:00:02]} 34. Kc2 {[%emt 0:00:12]} Bg5 {[%emt 0:00:21]} 0-1

[Event "ENG-ch Women 2019"]
[Site "Hull"]
[Date "2019.08.31"]
[Round "2.7"]
[White "Posadas, Rayelynn"]
[Black "Maladkar, Lavanya"]
[Result "1/2-1/2"]
[ECO "B70"]
[WhiteElo "1885"]
[BlackElo "1647"]
[Annotator "NA"]
[PlyCount "101"]
[EventDate "2019.08.30"]
[EventType "swiss"]
[EventCountry "ENG"]
[SourceTitle "playchess.com"]
[Source "ChessBase"]
[SourceQuality "1"]
[TimeControl "5400+30"]

1. e4 {[%emt 0:00:00]} c5 {[%emt 0:00:00]} 2. Nf3 {[%emt 0:00:00]} d6 {[%emt 0:00:00]} 3. d4 {[%emt 0:00:00]} cxd4 {[%emt 0:00:04]} 4. Nxd4 {[%emt 0:00:03]} Nf6 {[%emt 0:00:28]} 5. Nc3 {[%emt 0:01:53]} g6 {[%emt 0:00:06]} 6. Bc4 {[%emt 0:02:53]} Bg7 {[%emt 0:00:18]} 7. O-O {[%emt 0:00:04]} O-O {[%emt 0:00:49]} 8. Bg5 {[%emt 0:00:02]} Nc6 {[%emt 0:03:19]} 9. Nf3 {[%emt 0:04:10]} Bg4 {[%emt 0:03:41]} 10. Be2 {[%emt 0:02:28]} h6 {[%emt 0:04:59]} 11. Be3 {[%emt 0:01:55]} g5 $146 {[%emt 0:09:13] B70: Sicilian Dragon: 6 g3 and 6 Be2 (without a later Be3)} ({Predecessor:} 11... Rc8 12. Nh4 Bxe2 13. Qxe2 Ne5 14. Bxa7 b6 15. Na4 Nfd7 16. Qb5 Nc4 17. Rac1 Qc7 18. b3 Na3 19. Qa6 {0-1 (35) Picazo Gonzalez,A-Fernandez Diaz,C Lorca 2003}) 12. Rb1 {[%emt 0:02:26]} a6 {[%emt 0:04:05]} 13. Qd2 {[%emt 0:00:08]} b5 {[%emt 0:07:42]} 14. b4 {[%emt 0:04:50]} Bh5 {[%emt 0:05:17]} 15. h4 {[%emt 0:11:24]} g4 {[%emt 0:06:55]} 16. Nh2 {[%emt 0:00:02]} Kh7 {[%emt 0:01:10]} 17. Nd5 {[%emt 0:11:58]} Nxe4 {[%emt 0:13:06]} 18. Bd3 {[%emt 0:01:13]} Bg6 {[%emt 0:01:29]} ({Black should try} 18... f5 $17 19. Qe2 e6 20. Bxe4 fxe4) 19. Bxe4 {[%emt 0:01:03]} Bxe4 {[%emt 0:00:47]} 20. Nxg4 {[%emt 0:01:10]} e6 {[%emt 0:05:48]} 21. Bxh6 {[%emt 0:25:30]} (21. Ndf6+ $11 Bxf6 22. Bb6) 21... Qxh4 {[%emt 0:08:46] Double Attack} 22. Bxg7 {[%emt 0:00:39]} Kxg7 {[%emt 0:02:03]} 23. Ndf6 $2 {[%emt 0:06:24] [#]} (23. Nf4 $17 Rh8 24. f3) 23... Bf3 $1 {[%emt 0:08:53]} 24. Qf4 {[%emt 0:10:53]} Rh8 {[%emt 0:06:22]} 25. Qh2 {[%emt 0:04:37]} Bxg4 {[%emt 0:01:45]} 26. Qxh4 {[%emt 0:00:11]} Rxh4 {[%emt 0:00:15]} 27. g3 {[%emt 0:00:08]} Kxf6 {[%emt 0:01:27]} 28. gxh4 {[%emt 0:00:15]} Rh8 {[%emt 0:00:46]} 29. f3 {[%emt 0:01:37]} Bf5 {[%emt 0:00:30]} 30. Rb2 {[%emt 0:00:02]} Rxh4 {[%emt 0:00:21]} 31. c3 {[%emt 0:00:10]} Ne5 {[%emt 0:00:35]} 32. Rd2 {[%emt 0:03:56]} Bd3 {[%emt 0:01:15]} 33. Rff2 {[%emt 0:00:41]} Rf4 {[%emt 0:01:15]} 34. Kg2 {[%emt 0:00:18]} Bc4 {[%emt 0:00:51]} 35. Rxd6 {[%emt 0:03:02]} Bd5 {[%emt 0:01:03]} 36. Rxa6 {[%emt 0:00:42]} Bxf3+ {[%emt 0:00:43]} 37. Kg3 {[%emt 0:00:28]} Rg4+ {[%emt 0:00:18]} 38. Kh3 {[%emt 0:00:14]} Rc4 {[%emt 0:00:16]} (38... Kg5 $142 39. Rd2 Kf4 40. Rd4+ Be4 41. Rxe4+ Kxe4) 39. Rb6 {[%emt 0:01:13]} Rxc3 {[%emt 0:00:29]} (39... Ke7 $142 40. Rxb5 Bd5) 40. Rxb5 {[%emt 0:00:01] [#]} Kf5 $2 {[%emt 0:01:56]} ({Better is} 40... Re3 $1 $19 41. Kg3 Nc6) 41. Kg3 {[%emt 0:00:24]} Ke4 {[%emt 0:00:32] [#]} 42. Rxe5+ $1 {[%emt 0:00:29] Remove Defender} Kxe5 {[%emt 0:00:13]} 43. Rxf3 {[%emt 0:00:02]} Rxf3+ {[%emt 0:00:46]} 44. Kxf3 {[%emt 0:00:01]} f5 {[%emt 0:00:15]} 45. a4 {[%emt 0:00:21]} Kd6 $11 {[%emt 0:00:12]} 46. Ke3 {[%emt 0:00:21]} e5 {[%emt 0:00:25]} 47. a5 {[%emt 0:00:15]} Kc6 {[%emt 0:00:09]} 48. a6 {[%emt 0:00:12]} Kb6 {[%emt 0:00:09]} 49. b5 {[%emt 0:00:02]} f4+ {[%emt 0:00:14]} 50. Ke4 {[%emt 0:00:01]} Ka7 {[%emt 0:00:16]} 51. Kf3 {[%emt 0:00:02]} 1/2-1/2

[Event "ENG-ch Women 2019"]
[Site "Hull"]
[Date "2019.08.31"]
[Round "2.8"]
[White "Milewska, Agnieszka"]
[Black "Jayawarna, Tarini"]
[Result "1-0"]
[ECO "E61"]
[WhiteElo "1660"]
[BlackElo "1337"]
[Annotator "NA"]
[PlyCount "83"]
[EventDate "2019.08.30"]
[EventType "swiss"]
[EventCountry "ENG"]
[SourceTitle "playchess.com"]
[Source "ChessBase"]
[SourceQuality "1"]
[TimeControl "5400+30"]

1. d4 {[%emt 0:00:00]} Nf6 {[%emt 0:00:00]} 2. c4 {[%emt 0:00:00]} g6 {[%emt 0:00:00]} 3. Nc3 {[%emt 0:00:31]} Bg7 {[%emt 0:00:00]} 4. Nf3 {[%emt 0:00:05]} O-O {[%emt 0:00:00]} 5. Bf4 {[%emt 0:00:39]} d6 {[%emt 0:00:29]} 6. e3 {[%emt 0:00:17]} Nh5 {[%emt 0:17:47]} 7. Bg5 {[%emt 0:05:51]} c6 {[%emt 0:06:47]} 8. Be2 {[%emt 0:01:59]} f5 {[%emt 0:06:45]} 9. Nd2 {[%emt 0:07:25]} Nf6 {[%emt 0:01:13]} 10. Bxf6 {[%emt 0:03:36]} Bxf6 {[%emt 0:00:21]} 11. O-O {[%emt 0:00:52]} e5 {[%emt 0:02:28]} 12. dxe5 {[%emt 0:04:11]} dxe5 {[%emt 0:01:44]} 13. Qc2 {[%emt 0:02:33]} Be6 {[%emt 0:01:50]} 14. Rad1 {[%emt 0:02:06]} Qc7 {[%emt 0:01:33]} 15. e4 {[%emt 0:02:33]} Kh8 {[%emt 0:15:41]} 16. Nb3 {[%emt 0:04:59]} Na6 {[%emt 0:06:07]} 17. Qc1 {[%emt 0:02:59]} Qe7 {[%emt 0:18:47]} 18. Nb1 {[%emt 0:08:42]} fxe4 {[%emt 0:02:26]} 19. Qe3 {[%emt 0:01:34]} Bg5 {[%emt 0:01:36]} 20. Qc3 {[%emt 0:01:37]} Bf5 {[%emt 0:03:47]} 21. c5 {[%emt 0:04:11]} Nc7 {[%emt 0:01:58]} 22. Bc4 {[%emt 0:00:39]} Rad8 {[%emt 0:02:40]} 23. N1d2 {[%emt 0:04:18]} Bf6 {[%emt 0:02:55]} 24. Rfe1 {[%emt 0:02:46]} Nd5 {[%emt 0:00:54]} 25. Qc1 {[%emt 0:04:04]} Bg5 {[%emt 0:00:21]} 26. Bxd5 {[%emt 0:02:30]} Rxd5 {[%emt 0:01:03]} 27. Qc3 {[%emt 0:00:01]} Rd3 {[%emt 0:00:46]} 28. Qc4 {[%emt 0:00:14]} e3 {[%emt 0:00:40]} 29. fxe3 {[%emt 0:00:39]} Bxe3+ {[%emt 0:00:09]} 30. Kh1 {[%emt 0:00:02]} Bxd2 {[%emt 0:01:38]} 31. Rxd2 {[%emt 0:01:53]} Rxd2 {[%emt 0:00:07]} 32. Nxd2 {[%emt 0:00:04]} e4 {[%emt 0:00:57]} 33. h3 {[%emt 0:00:37]} e3 {[%emt 0:00:09]} 34. Qd4+ {[%emt 0:00:01]} Rf6 {[%emt 0:00:34]} 35. Rxe3 {[%emt 0:00:04]} Qf8 {[%emt 0:00:48]} 36. g4 {[%emt 0:01:02]} Bc8 {[%emt 0:00:19]} 37. g5 {[%emt 0:00:02]} Bxh3 {[%emt 0:01:02]} 38. Rxh3 {[%emt 0:00:28]} Qe7 {[%emt 0:00:28]} 39. Qxf6+ {[%emt 0:00:02]} Qg7 {[%emt 0:01:19]} 40. Ne4 {[%emt 0:00:04]} b5 {[%emt 0:00:32]} 41. Qxg7+ {[%emt 0:00:15]} Kxg7 {[%emt 0:00:03]} 42. Ra3 {[%emt 0:00:28]} 1-0

[Event "ENG-ch Women 2019"]
[Site "Hull"]
[Date "2019.08.31"]
[Round "2.9"]
[White "Anika Rachna Roy"]
[Black "Jayawarna, Thisumi"]
[Result "0-1"]
[ECO "A65"]
[WhiteElo "1380"]
[BlackElo "1125"]
[Annotator "NA"]
[PlyCount "78"]
[EventDate "2019.08.30"]
[EventType "swiss"]
[EventCountry "ENG"]
[SourceTitle "playchess.com"]
[Source "ChessBase"]
[SourceQuality "1"]
[TimeControl "5400+30"]

1. d4 {[%emt 0:00:00]} Nf6 {[%emt 0:00:00]} 2. c4 {[%emt 0:00:00]} c5 {[%emt 0:00:00]} 3. d5 {[%emt 0:00:00]} e6 {[%emt 0:00:00]} 4. Nc3 {[%emt 0:00:00]} exd5 {[%emt 0:00:00]} 5. cxd5 {[%emt 0:00:11]} d6 {[%emt 0:00:04]} 6. e4 {[%emt 0:00:30]} g6 {[%emt 0:00:08]} 7. Nge2 {[%emt 0:00:59]} Bg7 {[%emt 0:00:15]} 8. Ng3 {[%emt 0:00:19]} O-O {[%emt 0:00:26]} 9. Be2 {[%emt 0:01:50]} Re8 {[%emt 0:00:37]} 10. O-O {[%emt 0:01:17]} a6 {[%emt 0:05:59]} 11. Rb1 {[%emt 0:17:16]} b5 {[%emt 0:02:53]} 12. b4 {[%emt 0:07:12]} c4 {[%emt 0:03:39]} 13. Be3 {[%emt 0:11:44]} Bd7 {[%emt 0:05:47]} 14. Bf3 {[%emt 0:06:06]} Rf8 {[%emt 0:08:02]} 15. a4 {[%emt 0:07:22]} Qc8 {[%emt 0:19:58]} 16. h3 {[%emt 0:09:09]} Be8 {[%emt 0:16:22]} 17. Nge2 {[%emt 0:01:04]} bxa4 {[%emt 0:21:22]} 18. Nxa4 {[%emt 0:02:46]} Bxa4 {[%emt 0:00:51]} 19. Qxa4 {[%emt 0:00:12]} Nbd7 {[%emt 0:00:49]} 20. Nc3 {[%emt 0:11:56]} Ne5 {[%emt 0:02:53]} 21. Be2 {[%emt 0:00:39]} Re8 {[%emt 0:03:44]} 22. Qc2 {[%emt 0:01:51]} Qc7 {[%emt 0:01:07]} 23. f3 {[%emt 0:05:55]} Rac8 {[%emt 0:00:59]} 24. Na4 {[%emt 0:03:34]} Nh5 {[%emt 0:03:07]} 25. Nb6 {[%emt 0:04:46]} Ng3 {[%emt 0:01:02]} 26. Nxc8 {[%emt 0:01:14]} Nxf1 {[%emt 0:00:27]} 27. Nxd6 {[%emt 0:01:01]} Nxe3 {[%emt 0:00:35]} 28. Nxe8 {[%emt 0:00:09]} Qd7 {[%emt 0:00:46]} 29. Qd2 {[%emt 0:02:43]} Qa7 {[%emt 0:00:50]} 30. Nd6 {[%emt 0:02:21]} Nf5+ {[%emt 0:00:18]} 31. Kh1 {[%emt 0:00:20]} Nxd6 {[%emt 0:00:16]} 32. Qf4 {[%emt 0:00:48]} c3 {[%emt 0:00:30]} 33. Rc1 {[%emt 0:00:35]} Qb6 {[%emt 0:00:19]} 34. Rxc3 {[%emt 0:00:36]} Qxb4 {[%emt 0:00:13]} 35. Rc1 {[%emt 0:00:27]} Qb2 {[%emt 0:00:10]} 36. Qe3 {[%emt 0:00:35]} Qb4 {[%emt 0:00:50]} 37. Bxa6 {[%emt 0:00:28]} h5 {[%emt 0:01:01]} 38. Bd3 {[%emt 0:00:32]} Nxd3 {[%emt 0:00:39]} 39. Qxd3 {[%emt 0:00:08]} Qd4 {[%emt 0:00:44]} 0-1

[Event "ENG-ch Women 2019"]
[Site "Hull"]
[Date "2019.08.31"]
[Round "2.11"]
[White "Arora, Tashika"]
[Black "Kumaar, Sai Chinmayee N"]
[Result "1/2-1/2"]
[ECO "D02"]
[WhiteElo "1447"]
[BlackElo "1622"]
[Annotator "NA"]
[PlyCount "91"]
[EventDate "2019.08.30"]
[EventType "swiss"]
[EventCountry "ENG"]
[SourceTitle "playchess.com"]
[Source "ChessBase"]
[SourceQuality "1"]
[TimeControl "5400+30"]

1. d4 {[%emt 0:00:00]} d5 {[%emt 0:00:00]} 2. Nf3 {[%emt 0:00:00]} Nc6 {[%emt 0:00:00]} 3. Bf4 {[%emt 0:00:00]} Bf5 {[%emt 0:00:00]} 4. e3 {[%emt 0:00:10]} a6 {[%emt 0:00:21]} 5. Be2 {[%emt 0:00:36]} e6 {[%emt 0:00:06]} 6. O-O {[%emt 0:00:33]} Nf6 {[%emt 0:00:23]} 7. c4 {[%emt 0:00:18]} Bd6 {[%emt 0:05:09]} 8. Bxd6 {[%emt 0:01:11]} Qxd6 {[%emt 0:00:10]} 9. Nc3 {[%emt 0:02:27]} Ne7 {[%emt 0:02:49]} 10. Qb3 {[%emt 0:04:58]} Rb8 {[%emt 0:02:03]} 11. Rac1 {[%emt 0:01:53]} c6 {[%emt 0:00:59]} 12. cxd5 {[%emt 0:02:39]} exd5 {[%emt 0:04:49]} 13. Na4 {[%emt 0:03:00]} Nd7 {[%emt 0:03:02]} 14. Qc3 {[%emt 0:05:10]} Ng6 {[%emt 0:05:23]} 15. Nc5 {[%emt 0:01:37]} Qe7 {[%emt 0:02:38]} 16. Nxd7 {[%emt 0:04:29]} Qxd7 {[%emt 0:00:32]} 17. Qc5 {[%emt 0:00:41]} Rc8 {[%emt 0:04:36]} 18. a4 {[%emt 0:03:14]} Qe7 {[%emt 0:04:10]} 19. b4 {[%emt 0:04:29]} Qxc5 {[%emt 0:01:05]} 20. Rxc5 {[%emt 0:00:16]} Bd7 {[%emt 0:15:58]} 21. Rfc1 {[%emt 0:01:40]} Ke7 {[%emt 0:04:02]} 22. Kf1 {[%emt 0:03:55]} f6 {[%emt 0:03:28]} 23. h3 {[%emt 0:03:12]} Rhd8 {[%emt 0:05:20]} 24. g4 {[%emt 0:02:18]} Nf8 {[%emt 0:02:03]} 25. Nd2 {[%emt 0:03:56]} g6 {[%emt 0:04:24]} 26. R5c3 {[%emt 0:01:57]} Ne6 {[%emt 0:03:17]} 27. Nb3 {[%emt 0:04:05]} Rc7 {[%emt 0:02:24]} 28. b5 {[%emt 0:02:26]} axb5 {[%emt 0:00:55]} 29. axb5 {[%emt 0:00:12]} Rcc8 {[%emt 0:02:19]} 30. bxc6 {[%emt 0:00:28]} Rxc6 {[%emt 0:01:52]} 31. Rxc6 {[%emt 0:01:51]} bxc6 {[%emt 0:00:47]} 32. Kg2 {[%emt 0:04:50]} Rc8 {[%emt 0:03:08]} 33. Kg3 {[%emt 0:01:54]} Kd6 {[%emt 0:01:37]} 34. Nc5 {[%emt 0:01:19]} Nxc5 {[%emt 0:00:14]} 35. Rxc5 {[%emt 0:00:10]} Rh8 {[%emt 0:02:28]} 36. f4 {[%emt 0:01:42]} f5 {[%emt 0:01:41]} 37. g5 {[%emt 0:01:27]} h6 {[%emt 0:01:24]} 38. h4 {[%emt 0:00:24]} hxg5 {[%emt 0:00:16]} 39. hxg5 {[%emt 0:00:07]} Re8 {[%emt 0:00:50]} 40. Kf3 {[%emt 0:06:42]} Rh8 {[%emt 0:00:50]} 41. Kg2 {[%emt 0:08:39]} Re8 {[%emt 0:00:20]} 42. Kf2 {[%emt 0:04:02]} Rh8 {[%emt 0:00:22]} 43. Kg2 {[%emt 0:02:23]} Re8 {[%emt 0:00:14]} 44. Kf3 {[%emt 0:01:39]} Rh8 {[%emt 0:00:06]} 45. Kg2 {[%emt 0:02:24]} Re8 {[%emt 0:00:07]} 46. Kf3 {[%emt 0:02:13] Ke5 Ke4+} 1/2-1/2